{"text_format":"3","workbook":"xlsx","n_sheets":1,"sheets":["list"],"not_rendered":{"external_links":2,"defined_names":1},"read":"whole","date_system":"1900"}

{"sheet":"list","index":0,"n_rows":70,"n_cols":15,"rows_kept":70}
["№","Фамилия","Имя","Отчество","Пол","Участник с ОВЗ","Класс","Класс участия","Балл","Макс. Балл","Статус","Призер МЭ прошлого года","Учитель","Место работы учителя","Направления, виды практик  по технологии"]
[1,"Павлов","Дмитрий","Иванович","М","да",5,5,45,100,"участник",null,"Зиннурова Гузель Хазиннуровна","Муниципальное бюджетное общеобразовательное учреждение \"Многопрофильный лицей №37\" Нижнекамского муниципального района Республики Татарстан"]
[2,"Мухамадуллина","Милана","Радиковна","Ж","нет",5,5,43,100,"участник",null,"Нуретдинов Артур Ильдарович","Муниципальное бюджетное общеобразовательное учреждение \"Многопрофильный лицей №37\" Нижнекамского муниципального района Республики Татарстан"]
[3,"Газеева","Софья","Маратовна","Ж","нет",5,5,42,100,"участник",null,"Зиннурова Гузель Хазиннуровна","Муниципальное бюджетное общеобразовательное учреждение \"Многопрофильный лицей №37\" Нижнекамского муниципального района Республики Татарстан"]
[4,"Матросова","Виктория","Олеговна","Ж","нет",5,5,40,100,"участник",null,"Нуретдинов Артур Ильдарович","Муниципальное бюджетное общеобразовательное учреждение \"Многопрофильный лицей №37\" Нижнекамского муниципального района Республики Татарстан"]
[5,"Низамиев","Ильяс","Инсафович","М","нет",5,5,39,100,"участник",null,"Хаметов Зульфир Зельфирович","Муниципальное бюджетное общеобразовательное учреждение \"Многопрофильный лицей №37\" Нижнекамского муниципального района Республики Татарстан"]
[6,"Хилов","Андрей","Анатольевич","М","нет",5,5,38,100,"участник",null,"Хаметов Зульфир Зельфирович","Муниципальное бюджетное общеобразовательное учреждение \"Многопрофильный лицей №37\" Нижнекамского муниципального района Республики Татарстан"]
[7,"Галеева","Лейла","Ильназовна","Ж","нет",5,5,38,100,"участник",null,"Хаметов Зульфир Зельфирович",{"$f":"'[1]Протокол ШЭ ВОШ по предмету ЛИТ'!P3","v":"Муниципальное бюджетное общеобразовательное учреждение \"Многопрофильный лицей №37\" Нижнекамского муниципального района Республики Татарстан"}]
[8,"Юсупов","Рамазан","Ленарович","М","нет",5,5,37,100,"участник",null,"Зиннурова Гузель Хазиннуровна",{"$f":"'[1]Протокол ШЭ ВОШ по предмету ЛИТ'!P4","v":"Муниципальное бюджетное общеобразовательное учреждение \"Многопрофильный лицей №37\" Нижнекамского муниципального района Республики Татарстан"}]
[9,"Зайцева","Диана","Евгеньевна","Ж","нет",5,5,36,100,"участник",null,"Зиннурова Гузель Хазиннуровна",{"$f":"'[1]Протокол ШЭ ВОШ по предмету ЛИТ'!P5","v":"Муниципальное бюджетное общеобразовательное учреждение \"Многопрофильный лицей №37\" Нижнекамского муниципального района Республики Татарстан"}]
[10,"Афанасьева","София","Сергеевна","Ж","нет",5,5,36,100,"участник",null,"Зиннурова Гузель Хазиннуровна",{"$f":"'[1]Протокол ШЭ ВОШ по предмету ЛИТ'!P6","v":"Муниципальное бюджетное общеобразовательное учреждение \"Многопрофильный лицей №37\" Нижнекамского муниципального района Республики Татарстан"}]
[11,"Садыков","Ислам","Фанзилевич","М","нет ",5,5,34,100,"участник",null,"Зиннурова Гузель Хазиннуровна",{"$f":"'[1]Протокол ШЭ ВОШ по предмету ЛИТ'!P7","v":"Муниципальное бюджетное общеобразовательное учреждение \"Многопрофильный лицей №37\" Нижнекамского муниципального района Республики Татарстан"}]
[12,"Пустовалов","Егор","Алексеевич","М","нет",5,5,34,100,"участник",null,"Хаметов Зульфир Зельфирович",{"$f":"'[1]Протокол ШЭ ВОШ по предмету ЛИТ'!P8","v":"Муниципальное бюджетное общеобразовательное учреждение \"Многопрофильный лицей №37\" Нижнекамского муниципального района Республики Татарстан"}]
[13,"Матавин","Станислав","Александрович","М","нет",5,5,33,100,"участник",null,"Хаметов Зульфир Зельфирович",{"$f":"'[1]Протокол ШЭ ВОШ по предмету ЛИТ'!P9","v":"Муниципальное бюджетное общеобразовательное учреждение \"Многопрофильный лицей №37\" Нижнекамского муниципального района Республики Татарстан"}]
[14,"Ярмиева","Риана","Атласовна","Ж","нет",6,6,78,100,"участник",null,"Нуретдинов Артур Ильдарович",{"$f":"'[1]Протокол ШЭ ВОШ по предмету ЛИТ'!P10","v":"Муниципальное бюджетное общеобразовательное учреждение \"Многопрофильный лицей №37\" Нижнекамского муниципального района Республики Татарстан"}]
[15,"Ульянцева","Анастасия","Денисовна","Ж","нет",6,6,75,100,"победитель",null,"Нуретдинов Артур Ильдарович",{"$f":"'[1]Протокол ШЭ ВОШ по предмету ЛИТ'!P11","v":"Муниципальное бюджетное общеобразовательное учреждение \"Многопрофильный лицей №37\" Нижнекамского муниципального района Республики Татарстан"}]
[16,"Хуснутдинова","Камила","Маратовна","Ж","нет",6,6,73,100,"призер",null,"Хаметов Зульфир Зельфирович",{"$f":"'[1]Протокол ШЭ ВОШ по предмету ЛИТ'!P12","v":"Муниципальное бюджетное общеобразовательное учреждение \"Многопрофильный лицей №37\" Нижнекамского муниципального района Республики Татарстан"}]
[17,"Парёнкина","Карина","Олеговна","Ж","нет",6,6,48,100,"участник",null,"Нуретдинов Артур Ильдарович",{"$f":"'[1]Протокол ШЭ ВОШ по предмету ЛИТ'!P13","v":"Муниципальное бюджетное общеобразовательное учреждение \"Многопрофильный лицей №37\" Нижнекамского муниципального района Республики Татарстан"}]
[18,"Каримова","Аделина","Ильфаровна","Ж","нет",6,6,45,100,"участник",null,"Хаметов Зульфир Зельфирович",{"$f":"'[1]Протокол ШЭ ВОШ по предмету ЛИТ'!P14","v":"Муниципальное бюджетное общеобразовательное учреждение \"Многопрофильный лицей №37\" Нижнекамского муниципального района Республики Татарстан"}]
[19,"Миннегалиев","Ислам","Ильдарович","М","нет",6,6,45,100,"участник",null,"Хаметов Зульфир Зельфирович",{"$f":"'[1]Протокол ШЭ ВОШ по предмету ЛИТ'!P15","v":"Муниципальное бюджетное общеобразовательное учреждение \"Многопрофильный лицей №37\" Нижнекамского муниципального района Республики Татарстан"}]
[20,"Заббаров","Ранис","Рамисович","М","нет",6,6,43,100,"участник",null,"Хаметов Зульфир Зельфирович",{"$f":"'[1]Протокол ШЭ ВОШ по предмету ЛИТ'!P21","v":"Муниципальное бюджетное общеобразовательное учреждение \"Многопрофильный лицей №37\" Нижнекамского муниципального района Республики Татарстан"}]
[21,"Зайцева","Маргарита","Юрьевна","Ж","нет",6,6,43,100,"участник",null,"Нуретдинов Артур Ильдарович",{"$f":"'[1]Протокол ШЭ ВОШ по предмету ЛИТ'!P22","v":"Муниципальное бюджетное общеобразовательное учреждение \"Многопрофильный лицей №37\" Нижнекамского муниципального района Республики Татарстан"}]
[22,"Галимов","Райхан","Ильшатович","М","нет",6,6,41,100,"участник",null,"Хаметов Зульфир Зельфирович",{"$f":"'[1]Протокол ШЭ ВОШ по предмету ЛИТ'!P23","v":"Муниципальное бюджетное общеобразовательное учреждение \"Многопрофильный лицей №37\" Нижнекамского муниципального района Республики Татарстан"}]
[23,"Чувашов","Данил","Михайлович","М","нет ",6,6,42,100,"участник",null,"Хаметов Зульфир Зельфирович",{"$f":"'[1]Протокол ШЭ ВОШ по предмету ЛИТ'!P24","v":"Муниципальное бюджетное общеобразовательное учреждение \"Многопрофильный лицей №37\" Нижнекамского муниципального района Республики Татарстан"}]
[24,"Хуснутдинова","Камила","Маратовна","Ж","нет",6,6,43,100,"участник",null,"Хаметов Зульфир Зельфирович",{"$f":"'[1]Протокол ШЭ ВОШ по предмету ЛИТ'!P25","v":"Муниципальное бюджетное общеобразовательное учреждение \"Многопрофильный лицей №37\" Нижнекамского муниципального района Республики Татарстан"}]
[25,"Усманова","Амира","Алмазовна","Ж","нет",6,6,37,100,"участник",null,"Хаметов Зульфир Зельфирович",{"$f":"'[1]Протокол ШЭ ВОШ по предмету ЛИТ'!P26","v":"Муниципальное бюджетное общеобразовательное учреждение \"Многопрофильный лицей №37\" Нижнекамского муниципального района Республики Татарстан"}]
[26,"Миронов","Ярослав","Александрович","М","нет",6,6,34,100,"участник",null,"Хаметов Зульфир Зельфирович",{"$f":"'[1]Протокол ШЭ ВОШ по предмету ЛИТ'!P27","v":"Муниципальное бюджетное общеобразовательное учреждение \"Многопрофильный лицей №37\" Нижнекамского муниципального района Республики Татарстан"}]
[27,"Ахметжанова","Лейла","Разумовна","Ж","нет",6,6,33,100,"участник",null,"Хаметов Зульфир Зельфирович",{"$f":"'[1]Протокол ШЭ ВОШ по предмету ЛИТ'!P28","v":"Муниципальное бюджетное общеобразовательное учреждение \"Многопрофильный лицей №37\" Нижнекамского муниципального района Республики Татарстан"}]
[28,"Гайфутдинов","Ислам","Айнурович","М","нет",7,7,80,100,"победитель",null,"Нуретдинов Артур Ильдарович","Муниципальное бюджетное общеобразовательное учреждение \"Многопрофильный лицей №37\" Нижнекамского муниципального района Республики Татарстан"]
[29,"Горюнова","Марьяна","Андреевна","Ж","нет",7,7,61,100,"призер",null,"Зиннурова Гузель Хазиннуровна","Муниципальное бюджетное общеобразовательное учреждение \"Многопрофильный лицей №37\" Нижнекамского муниципального района Республики Татарстан"]
[30,"Габдрахимова","Камилла","Ильдаровна","Ж","нет",7,7,79,100,"участник",null,"Зиннурова Гузель Хазиннуровна",{"$f":"'[2]Протокол ШЭ ВОШ по предмету ЛИТ'!P3","v":"Муниципальное бюджетное общеобразовательное учреждение \"Многопрофильный лицей №37\" Нижнекамского муниципального района Республики Татарстан"}]
[31,"Бусыгина","Анна","Алексеевна","Ж","нет",7,7,62,100,"участник",null,"Зиннурова Гузель Хазиннуровна",{"$f":"'[2]Протокол ШЭ ВОШ по предмету ЛИТ'!P4","v":"Муниципальное бюджетное общеобразовательное учреждение \"Многопрофильный лицей №37\" Нижнекамского муниципального района Республики Татарстан"}]
[32,"Подакова","Полина","Александровна","Ж","нет",7,7,59,100,"участник",null,"Зиннурова Гузель Хазиннуровна",{"$f":"'[2]Протокол ШЭ ВОШ по предмету ЛИТ'!P6","v":"Муниципальное бюджетное общеобразовательное учреждение \"Многопрофильный лицей №37\" Нижнекамского муниципального района Республики Татарстан"}]
[33,"Галимова","Гульназ","Ильназовна","Ж","нет",7,7,58,100,"участник",null,"Зиннурова Гузель Хазиннуровна",{"$f":"'[2]Протокол ШЭ ВОШ по предмету ЛИТ'!P7","v":"Муниципальное бюджетное общеобразовательное учреждение \"Многопрофильный лицей №37\" Нижнекамского муниципального района Республики Татарстан"}]
[34,"Ташкин","Эдуард","Михайлович","М","нет",7,7,57,100,"участник",null,"Зиннурова Гузель Хазиннуровна",{"$f":"'[2]Протокол ШЭ ВОШ по предмету ЛИТ'!P8","v":"Муниципальное бюджетное общеобразовательное учреждение \"Многопрофильный лицей №37\" Нижнекамского муниципального района Республики Татарстан"}]
[35,"Чекмарева","София","Анатольевна","Ж","нет",7,7,51,100,"участник",null,"Зиннурова Гузель Хазиннуровна",{"$f":"'[2]Протокол ШЭ ВОШ по предмету ЛИТ'!P9","v":"Муниципальное бюджетное общеобразовательное учреждение \"Многопрофильный лицей №37\" Нижнекамского муниципального района Республики Татарстан"}]
[36,"Быстров","Илья","Александрович","М","нет",7,7,47,100,"участник",null,"Зиннурова Гузель Хазиннуровна",{"$f":"'[2]Протокол ШЭ ВОШ по предмету ЛИТ'!P10","v":"Муниципальное бюджетное общеобразовательное учреждение \"Многопрофильный лицей №37\" Нижнекамского муниципального района Республики Татарстан"}]
[37,"Глухарева","Кира","Вячеславовна","Ж","нет",7,7,46,100,"участник",null,"Зиннурова Гузель Хазиннуровна",{"$f":"'[2]Протокол ШЭ ВОШ по предмету ЛИТ'!P11","v":"Муниципальное бюджетное общеобразовательное учреждение \"Многопрофильный лицей №37\" Нижнекамского муниципального района Республики Татарстан"}]
[38,"Макаров","Кирилл","Алексеевич","М","нет",7,7,45,100,"участник",null,"Зиннурова Гузель Хазиннуровна",{"$f":"'[2]Протокол ШЭ ВОШ по предмету ЛИТ'!P12","v":"Муниципальное бюджетное общеобразовательное учреждение \"Многопрофильный лицей №37\" Нижнекамского муниципального района Республики Татарстан"}]
[39,"Ильясов","Арслан","Айнурович","М","нет",7,7,44,100,"участник",null,"Зиннурова Гузель Хазиннуровна",{"$f":"'[2]Протокол ШЭ ВОШ по предмету ЛИТ'!P13","v":"Муниципальное бюджетное общеобразовательное учреждение \"Многопрофильный лицей №37\" Нижнекамского муниципального района Республики Татарстан"}]
[40,"Донской","Дмитрий","Максимович","М","нет",8,8,78,100,"победитель",null,"Нуретдинов Артур Ильдарович",{"$f":"'[2]Протокол ШЭ ВОШ по предмету ЛИТ'!P14","v":"Муниципальное бюджетное общеобразовательное учреждение \"Многопрофильный лицей №37\" Нижнекамского муниципального района Республики Татарстан"}]
[41,"Ибрагимова","Амалия","Ильгамовна","Ж","нет",8,8,68,100,"призер",null,"Нуретдинов Артур Ильдарович",{"$f":"'[2]Протокол ШЭ ВОШ по предмету ЛИТ'!P15","v":"Муниципальное бюджетное общеобразовательное учреждение \"Многопрофильный лицей №37\" Нижнекамского муниципального района Республики Татарстан"}]
[42,"Гусманов","Руслан","Ильнурович","М","нет",8,8,46,100,"участник",null,"Нуретдинов Артур Ильдарович",{"$f":"'[2]Протокол ШЭ ВОШ по предмету ЛИТ'!P15","v":"Муниципальное бюджетное общеобразовательное учреждение \"Многопрофильный лицей №37\" Нижнекамского муниципального района Республики Татарстан"}]
[43,"Фаттахов","Данис","Раисович","М","нет",8,8,34,100,"участник",null,"Нуретдинов Артур Ильдарович",{"$f":"'[2]Протокол ШЭ ВОШ по предмету ЛИТ'!P16","v":"Муниципальное бюджетное общеобразовательное учреждение \"Многопрофильный лицей №37\" Нижнекамского муниципального района Республики Татарстан"}]
[44,"Гарипова","Эльвина","Ильдаровна","Ж","нет",8,8,33,100,"участник",null,"Нуретдинов Артур Ильдарович",{"$f":"'[2]Протокол ШЭ ВОШ по предмету ЛИТ'!P17","v":"Муниципальное бюджетное общеобразовательное учреждение \"Многопрофильный лицей №37\" Нижнекамского муниципального района Республики Татарстан"}]
[45,"Павлов","Григорий","Иванович","М","нет",8,8,28,100,"участник",null,"Нуретдинов Артур Ильдарович",{"$f":"'[2]Протокол ШЭ ВОШ по предмету ЛИТ'!P18","v":"Муниципальное бюджетное общеобразовательное учреждение \"Многопрофильный лицей №37\" Нижнекамского муниципального района Республики Татарстан"}]
[46,"Рожина","Вероника","Валерьевна","Ж","нет",8,8,41,100,"участник",null,"Зиннурова Гузель Хазиннуровна",{"$f":"'[2]Протокол ШЭ ВОШ по предмету ЛИТ'!P19","v":"Муниципальное бюджетное общеобразовательное учреждение \"Многопрофильный лицей №37\" Нижнекамского муниципального района Республики Татарстан"}]
[47,"Смирнов","Виталий","Вячеславович","М","нет",8,8,39,100,"участник",null,"Нуретдинов Артур Ильдарович",{"$f":"'[2]Протокол ШЭ ВОШ по предмету ЛИТ'!P20","v":"Муниципальное бюджетное общеобразовательное учреждение \"Многопрофильный лицей №37\" Нижнекамского муниципального района Республики Татарстан"}]
[48,"Сосунова","Виктория","Андреевна","Ж","нет",8,8,33,100,"участник",null,"Нуретдинов Артур Ильдарович",{"$f":"'[2]Протокол ШЭ ВОШ по предмету ЛИТ'!P21","v":"Муниципальное бюджетное общеобразовательное учреждение \"Многопрофильный лицей №37\" Нижнекамского муниципального района Республики Татарстан"}]
[49,"Ульданов","Рафиль","Ниязович","М","нет",8,8,33,100,"участник",null,"Нуретдинов Артур Ильдарович","Муниципальное бюджетное общеобразовательное учреждение \"Многопрофильный лицей №37\" Нижнекамского муниципального района Республики Татарстан"]
[50,"Гайнуллин","Ралиф","Русланович","М","М",9,9,78,100,"победитель",null,"Зиннурова Гузель Хазиннуровна",{"$f":"'[2]Протокол ШЭ ВОШ по предмету ЛИТ'!P21","v":"Муниципальное бюджетное общеобразовательное учреждение \"Многопрофильный лицей №37\" Нижнекамского муниципального района Республики Татарстан"}]
[51,"Гарипова","Ралина","Зуфаровна","Ж","нет",9,9,74,100,"призер",null,"Зиннурова Гузель Хазиннуровна","Муниципальное бюджетное общеобразовательное учреждение \"Многопрофильный лицей №37\" Нижнекамского муниципального района Республики Татарстан"]
[52,"Подгорнова","Ульяна","Вячеславовна","Ж","нет",9,9,45,100,"участник",null,"Зиннурова Гузель Хазиннуровна",{"$f":"$N$51","v":"Муниципальное бюджетное общеобразовательное учреждение \"Многопрофильный лицей №37\" Нижнекамского муниципального района Республики Татарстан"}]
[53,"Даутов","Булат","Романович","М","нет",9,9,47,100,"участник",null,"Зиннурова Гузель Хазиннуровна","Муниципальное бюджетное общеобразовательное учреждение \"Многопрофильный лицей №37\" Нижнекамского муниципального района Республики Татарстан"]
[54,"Лаврентьева","Екатерина","Андреевна","Ж","нет",9,9,42,100,"участник",null,"Зиннурова Гузель Хазиннуровна","Муниципальное бюджетное общеобразовательное учреждение \"Многопрофильный лицей №37\" Нижнекамского муниципального района Республики Татарстан"]
[55,"Мулюкова","Алия","Алмазовна","Ж","нет",9,9,45,100,"участник",null,"Зиннурова Гузель Хазиннуровна","Муниципальное бюджетное общеобразовательное учреждение \"Многопрофильный лицей №37\" Нижнекамского муниципального района Республики Татарстан"]
[56,"Зайцев","Данил","Евгеньевич","М","нет",9,9,47,100,"участник",null,"Зиннурова Гузель Хазиннуровна","Муниципальное бюджетное общеобразовательное учреждение \"Многопрофильный лицей №37\" Нижнекамского муниципального района Республики Татарстан"]
[57,"Сабиров","Ильдар","Ильшатович","М","нет",9,9,42,100,"участник",null,"Зиннурова Гузель Хазиннуровна","Муниципальное бюджетное общеобразовательное учреждение \"Многопрофильный лицей №37\" Нижнекамского муниципального района Республики Татарстан"]
[58,"Садыкова","Лилиана","Руслановна","Ж","нет",9,9,41,100,"участник",null,"Зиннурова Гузель Хазиннуровна","Муниципальное бюджетное общеобразовательное учреждение \"Многопрофильный лицей №37\" Нижнекамского муниципального района Республики Татарстан"]
[59,"Седышев","Данил","Павлович","М","нет",9,9,40,100,"участник",null,"Зиннурова Гузель Хазиннуровна","Муниципальное бюджетное общеобразовательное учреждение \"Многопрофильный лицей №37\" Нижнекамского муниципального района Республики Татарстан"]
[60,"Васильева","Дарья","Викторовна","Ж","нет",11,11,79,100,"победитель",null,"Зиннурова Гузель Хазиннуровна","Муниципальное бюджетное общеобразовательное учреждение \"Многопрофильный лицей №37\" Нижнекамского муниципального района Республики Татарстан"]
[61,"Сибгатуллин","Марат","Фанисович","М","нет",11,11,75,100,"призер",null,"Зиннурова Гузель Хазиннуровна","Муниципальное бюджетное общеобразовательное учреждение \"Многопрофильный лицей №37\" Нижнекамского муниципального района Республики Татарстан"]
[62,"Музафарова","Камиля","Ленаровна","Ж","нет",11,11,46,100,"участник",null,"Зиннурова Гузель Хазиннуровна","Муниципальное бюджетное общеобразовательное учреждение \"Многопрофильный лицей №37\" Нижнекамского муниципального района Республики Татарстан"]
[63,"Кузнецов","Никита","Артемович","М","нет",11,11,42,100,"участник",null,"Зиннурова Гузель Хазиннуровна","Муниципальное бюджетное общеобразовательное учреждение \"Многопрофильный лицей №37\" Нижнекамского муниципального района Республики Татарстан"]
[64,"Латыпова","Лия","Марселевна","Ж","нет",11,11,40,100,"участник",null,"Зиннурова Гузель Хазиннуровна","Муниципальное бюджетное общеобразовательное учреждение \"Многопрофильный лицей №37\" Нижнекамского муниципального района Республики Татарстан"]
[65,"Лебедева","Вероника","Андреевна","Ж","нет",11,11,39,100,"участник",null,"Зиннурова Гузель Хазиннуровна","Муниципальное бюджетное общеобразовательное учреждение \"Многопрофильный лицей №37\" Нижнекамского муниципального района Республики Татарстан"]
[66,"Марков","Виктор","Валерьевич","М","нет",11,11,38,100,"участник",null,"Зиннурова Гузель Хазиннуровна","Муниципальное бюджетное общеобразовательное учреждение \"Многопрофильный лицей №37\" Нижнекамского муниципального района Республики Татарстан"]
[67,"Мингалимов","Раиль","Рамилевич","М","нет",11,11,36,100,"участник",null,"Зиннурова Гузель Хазиннуровна","Муниципальное бюджетное общеобразовательное учреждение \"Многопрофильный лицей №37\" Нижнекамского муниципального района Республики Татарстан"]
[68,"Миронова","Дарья","Александровна","Ж","нет",11,11,36,100,"участник",null,"Зиннурова Гузель Хазиннуровна","Муниципальное бюджетное общеобразовательное учреждение \"Многопрофильный лицей №37\" Нижнекамского муниципального района Республики Татарстан"]
[69,"Митрофанова","Дарья","Сергеевна","Ж","нет",11,11,35,100,"участник",null,"Зиннурова Гузель Хазиннуровна","Муниципальное бюджетное общеобразовательное учреждение \"Многопрофильный лицей №37\" Нижнекамского муниципального района Республики Татарстан"]